Cogmind - Beta 13 @@@ ROGUE MODE // 2024.04.22 @ 11:58:43 Player: Barbarossa Result: Destroyed by G-50 Soldier with Heavy Laser Performance ------------- Evolutions (5) 2500 Regions Visited (7) 1400 Robots Destroyed (201) 1005 Value Destroyed (5921) 5921 Prototype IDs (11) 220 Alien Tech Used (0) 0 Bonus (1910) 1910 TOTAL SCORE: 12956 Bonus ------- High Alert Combat Kills 1310 Follower Combat Kills 100 Entered DSFs 500 Cogmind --------- Core Integrity 0/1000 Matter 3/300 Energy 100/100 System Corruption 7% Temperature Cool (9) Movement Treading (160) Location -5/Factory Parts ------- > --- POWER (2) -------- (None) > --- PROPULSION (4) --- Medium Treads > --- UTILITY (7) ------ (None) > --- WEAPON (4) ------- Mini Smartbomb Launcher > --- INVENTORY (5) ---- Light Ion Engine Layered Medium Armor Plating Authchip [Weapon] Datajack Peak State ------------ > --- POWER ------------ Reinforced Deuterium Engine Angular Momentum Engine > --- PROPULSION ------- Flexi-carbon Leg Enhanced Flexi-carbon Leg Enhanced Flexi-carbon Leg Compact Wheel > --- UTILITY ---------- Cargo Storage Unit Recoil Nullifier Hardened Heavy Armor Plating Hacking Suite System Shield > --- WEAPON ----------- Autogun Gauss Rifle Gauss Rifle Gauss Rifle > --- INVENTORY -------- Improved Deuterium Engine Armored Huge Wheel Improved Heat Sink Advanced Heat Sink Cooling System Improved Cooling System High-capacity Matter Pod Machine Analyzer Improved Signal Interpreter Matter Filter Authchip [R/Combat] Authchip [R/Combat] Authchip [Propulsion] Authchip [Device] Authchip [Storage] Authchip [Processor] Authchip [Armor] Authchip [Armor] Authchip [Weapon] Authchip [Weapon] Improved System Restoration Module Improved System Restoration Module Improved System Restoration Module Long-range Tractor Beam Improved Field Recycling Unit Gauss Rifle Gauss Rifle Gauss Rifle Datajack [Rating: 76] Favorites ----------- Power Reinforced Deuterium Engine Engine Reinforced Deuterium Engine Power Core Enhanced Nuclear Core Propulsion Compact Wheel Treads Medium Treads Leg Enhanced Flexi-carbon Leg Wheel Compact Wheel Utility Huge Storage Unit Device Improved Cooling System Storage Huge Storage Unit Processor Targeting Computer Hackware Hacking Suite Protection Hardened Heavy Armor Plating Weapon Gauss Rifle Energy Gun Medium Laser Energy Cannon Heavy Particle Cannon Ballistic Gun Gauss Rifle Ballistic Cannon Heavy Assault Cannon Launcher Mini Smartbomb Launcher Impact Weapon Impact Mace Special Melee Weapon Datajack Build | -11 -10 -9 -8 -7 -6 -6 -5 ------- Run | Yrd Mat Mat Mat Fac Fac DSF Fac Slots Evolved 10 | . . 2 2 2 2 . 2 Power 1 | . . . . . 1 . . Propulsion 2 | . . 1 1 . . . . Utility 5 | . . 1 1 2 1 . . Weapon 2 | . . . . . . . 2 Parts Attached 187 | . 7 26 35 64 7 7 41 Power 20 | . . 5 1 7 1 1 5 Engine 17 | . . 4 1 6 1 1 4 Core 3 | . . 1 . 1 . . 1 Reactor . | . . . . . . . . Propulsion 51 | . 4 6 16 11 1 . 13 Treads 1 | . . . . . . . 1 Leg 8 | . . . . . . . 8 Wheel 42 | . 4 6 16 11 1 . 4 Hover . | . . . . . . . . Flight . | . . . . . . . . Utility 65 | . 2 9 9 27 5 1 12 Device 32 | . . 2 5 13 4 . 8 Storage 8 | . 1 5 . 2 . . . Processor 4 | . . 1 1 1 . . 1 Hackware 5 | . . . . 2 1 . 2 Protection 16 | . 1 1 3 9 . 1 1 Artifact . | . . . . . . . . Weapon 51 | . 1 6 9 19 . 5 11 Energy Gun 12 | . . 4 1 3 . 1 3 Energy Cannon 8 | . . 2 3 3 . . . Ballistic Gun 19 | . 1 . 4 4 . 4 6 Ballistic Cannon 7 | . . . . 6 . . 1 Launcher 1 | . . . . . . . 1 Special Weapon . | . . . . . . . . Impact Weapon 1 | . . . . 1 . . . Slashing Weapon . | . . . . . . . . Piercing Weapon . | . . . . . . . . Special Melee Weapon 3 | . . . 1 2 . . . Unidentified Prototypes 7 | . . . 1 4 . . 2 Parts Lost 80 | . 1 10 11 19 . 8 31 Power 12 | . . 2 1 2 . 2 5 Propulsion 20 | . . 5 5 5 . 1 4 Utility 24 | . . 1 3 7 . 2 11 Weapon 24 | . 1 2 2 5 . 3 11 Highest Loss Streak 20 | . 1 5 3 6 . 7 20 To Critical Strikes . | . . . . . . . . Average Slot Usage (%) 75 | . 99 92 74 73 82 65 62 Engine 7 | . 14 7 8 5 13 7 8 Leg 1 | . 7 . . . . . 7 Wheel 17 | . 20 30 20 17 16 13 5 Device 8 | . . 8 6 9 20 8 7 Storage 7 | . 14 11 9 7 6 6 3 Processor 3 | . . 5 6 3 . . . Hackware 4 | . . . . 6 13 13 8 Protection 6 | . 13 5 6 7 . 3 1 Energy Gun 3 | . . 15 1 2 . . . Energy Cannon 3 | . . 2 7 3 13 1 . Ballistic Gun 5 | . 27 2 4 1 . 8 13 Ballistic Cannon 2 | . . . . 3 . . 2 Naked Turns 115 | . . . . . . . 115 Heaviest Build 210 | 14 32 95 126 167 177 179 210 Greatest Support 78 | 20 32 48 52 60 60 60 78 Greatest Overweight (x) 54 | . 1 5 37 54 5 4 7 Average Overweight (x) 2 | . . . 4 2 3 3 1 Largest Inventory Capacity 30 | 8 15 25 25 30 30 30 30 Average Capacity 24 | 8 12 18 25 25 30 30 24 Most Carried 30 | 6 13 21 25 25 21 30 30 Average Carried 22 | 6 8 16 24 24 17 24 22 Final Capacity 30 | 8 15 25 25 30 30 30 5 Final Carried 30 | 6 13 19 25 20 21 30 4 Class Distribution -------------------- 47% | Mutant 32% | Scavenger-Mutant 7% | Hauler-Mutant 7% | Hauler-Gunner 4% | Hauler-Tank Dominant Class ---------------- Mutant | -10/Materials Mutant | -9/Materials Scavenger-Mutant | -8/Materials Mutant | -7/Factory Hauler-Mutant | -6/Factory Hauler-Mutant | -6/DSF Hauler-Gunner | -5/Factory Resources | -11 -10 -9 -8 -7 -6 -6 -5 ----------- Run | Yrd Mat Mat Mat Fac Fac DSF Fac Matter Collected 4825 | 200 305 498 630 1972 . 287 933 Remotely 10 | . . . . 10 . . . Salvage Created 8749 | . 799 1193 1561 3433 . 405 1358 Parts 416 | . 35 72 75 138 . 26 70 Haulers Intercepted 14 | . 1 5 3 4 . . 1 Recyclers Shooed 15 | . 5 1 . 7 . . 2 Parts Field Recycled . | . . . . . . . . Retrieved Matter . | . . . . . . . . Parts Self-Destructed . | . . . . . . . . Prevented . | . . . . . . . . Kills | -11 -10 -9 -8 -7 -6 -6 -5 ------- Run | Yrd Mat Mat Mat Fac Fac DSF Fac Combat Hostiles Destroyed 136 | . 9 22 16 58 . 10 21 Guns 78 | . 9 17 9 16 . 8 19 Cannons 54 | . . 4 7 39 . 2 2 AOE 1 | . . . . 1 . . . Classes Destroyed 17 | . 6 3 5 1 . 1 1 Worker 16 | . . . 7 8 . . 1 Builder 4 | . 1 . . 2 . . 1 Tunneler 1 | . . . . . . . 1 Hauler 14 | . 1 5 3 4 . . 1 Recycler 29 | . 6 2 6 13 . . 2 Mechanic 1 | . . . 1 . . . . Operator 2 | . . 1 . 1 . . . Watcher 5 | . 2 1 . 2 . . . Swarmer 37 | . 6 7 . 14 . 5 5 Grunt 62 | . 3 11 9 29 . 2 8 Brawler 2 | . . 1 . 1 . . . Duelist 3 | . . . 1 2 . . . Sentry 12 | . . 3 3 5 . . 1 Specialist 2 | . . . . . . 2 . Hunter 5 | . . . 2 . . . 3 Programmer 11 | . . . . 7 . . 4 Heavy 2 | . . . 1 . . 1 . Best Kill Streak 8 | . 7 8 5 6 . 4 6 Combat Bots Only 7 | . 3 7 3 6 . 4 6 Max Kills in Single Turn 2 | . 1 1 1 2 . 2 1 Gunslinging 1 | . . . . . . 1 . Exploded 1 | . . . . 1 . . . Melee . | . . . . . . . . Uniques/NPCs Destroyed . | . . . . . . . . Combat | -11 -10 -9 -8 -7 -6 -6 -5 -------- Run | Yrd Mat Mat Mat Fac Fac DSF Fac Hostile Shots Fired 1371 | . 46 142 167 575 . 99 342 Missed 391 | . 13 48 44 165 . 30 91 Damage Taken 15733 | . 309 998 2217 6329 . 1405 4475 Core 2450 | . 59 228 271 634 . 246 1012 Absorbed by Shields 26 | . . . . . . . 26 Regen/Repaired (Parts) 1617 | . . . 571 1046 . . . Core Remaining (%) 58 | 100 76 43 50 9 . 71 . Volleys Fired 610 | . 56 101 123 224 . 46 60 Largest 4 | . 2 2 2 2 . 2 4 Hottest 218 | . 40 110 135 155 . 155 218 Shots Fired 1136 | . 111 197 182 370 . 70 206 Gun 731 | . 111 178 93 131 . 54 164 Cannon 405 | . . 19 89 239 . 16 42 Launcher . | . . . . . . . . Special . | . . . . . . . . Kinetic 645 | . 111 10 83 186 . 54 201 Thermal 486 | . . 187 99 184 . 16 . Explosive . | . . . . . . . . Electromagnetic 5 | . . . . . . . 5 Robot Hit Streak 20 | . 7 13 12 20 . 5 10 Robot Miss Streak 11 | . 5 4 3 11 . 6 3 Penetration Max 1 | . . . . . . 1 1 Secondary Targets 11 | . 2 1 1 4 . 3 . Max Gunslinging Chain 1 | . 1 1 1 1 . 1 . Shots Hit Robots 769 | . 63 128 131 280 . 49 118 Core Hits 463 | . 29 49 54 242 . 32 57 Critical Kills 2 | . . . . 1 . . 1 Critical Parts Destroyed 4 | . . . . . . 2 2 Critical Strikes 31 | . . 18 . 7 . 2 4 Burn 18 | . . 18 . . . . . Meltdown 1 | . . . . 1 . . . Destroy 5 | . . . . . . 2 3 Blast 7 | . . . . 6 . . 1 Melee Attacks 1 | . . . 1 . . . . Impact . | . . . . . . . . Slashing . | . . . . . . . . Piercing . | . . . . . . . . Sneak Attacks . | . . . . . . . . Combat Hostiles . | . . . . . . . . Follow-up Attacks . | . . . . . . . . Damage Inflicted 17484 | . 814 1683 2687 8255 . 1148 2897 Guns 8475 | . 814 1439 1032 2250 . 872 2068 Cannons 8388 | . . 244 1628 5569 . 276 671 Explosions 484 | . . . . 352 . . 132 Melee . | . . . . . . . . Ramming 137 | . . . 27 84 . . 26 Kinetic 9900 | . 814 58 956 4507 . 872 2693 Thermal 6917 | . . 1625 1704 3312 . 276 . Explosive 132 | . . . . . . . 132 Electromagnetic 398 | . . . . 352 . . 46 Impact . | . . . . . . . . Slashing . | . . . . . . . . Piercing . | . . . . . . . . Highest Corruption 7 | . . . . 7 . . 7 Average Corruption 3 | . . . . 3 . . 4 Corruption Purged 5 | . . . . . . . 5 Corruption Blocked 3 | . . . . . . . 3 Effects 78 | . . . . 67 . . 11 Message Errors 16 | . . . . 16 . . . Matter Fused 15 | . . . . 12 . . 3 Heat Flow Errors 7 | . . . . 6 . . 1 Energy Discharges 9 | . . . . 7 . . 2 Parts Rejected 3 | . . . . 2 . . 1 Parts Fused 1 | . . . . 1 . . . Data Loss (minor) 12 | . . . . 9 . . 3 Data Loss (major) 5 | . . . . 5 . . . Misfires 4 | . . . . 3 . . 1 Alerts 1 | . . . . 1 . . . Weapon Failures 5 | . . . . 5 . . . Overload Shots . | . . . . . . . . Overflow Damage 421 | . . . 6 358 . . 57 Projectiles 417 | . . . 6 354 . . 57 Explosions . | . . . . . . . . Melee 4 | . . . . 4 . . . Knockbacks 52 | . . . . 41 . . 11 Impact 1 | . . . . . . . 1 Kinetic 45 | . . . . 35 . . 10 Secondary 6 | . . . . 6 . . . Self-Inflicted Damage 173 | . . . 13 93 . . 67 Shots 3 | . . . . 2 . . 1 Rammed 7 | . . . 2 4 . . 1 Targets Rammed 8 | . . . 2 4 . . 2 Kicked 1 | . . . . . . . 1 Crushed . | . . . . . . . . Highest Temperature 430 | . 12 300 430 356 . . 341 Average Temperature 83 | . 5 102 123 48 . . 102 Received Heat Transfer 3870 | . 66 339 783 1827 . 171 684 Effects 8 | . . . 6 1 . . 1 Shutdowns 1 | . . . 1 . . . . Interference 3 | . . . 3 . . . . Matter Decay 3 | . . . 1 1 . . 1 Short Circuit 1 | . . . 1 . . . . Siege Activations . | . . . . . . . . Robots Corrupted . | . . . . . . . . Combat Hostiles . | . . . . . . . . Parts Fried . | . . . . . . . . Impact Corruptions 2 | . . . . 2 . . . Robots Melted 6 | . . 4 . 2 . . . Combat Hostiles 3 | . . 1 . 2 . . . Parts Melted 38 | . . 21 4 13 . . . Heat Transferred 14891 | . . 5897 2876 5685 . 433 . Parts Sabotaged . | . . . . . . . . Parts Stolen . | . . . . . . . . Parts Stripped . | . . . . . . . . Power Chain Reactions . | . . . . . . . . Alert | -11 -10 -9 -8 -7 -6 -6 -5 ------- Run | Yrd Mat Mat Mat Fac Fac DSF Fac Peak Influence 1436 | . 302 420 299 1436 703 672 587 Initial 703 | . . 44 102 112 703 492 352 Average 392 | . 135 202 135 547 703 547 384 Maximum Alert Level 4 | . 1 2 1 4 3 2 2 Low Security (%) 39 | 100 82 39 76 37 . . . Level 1 21 | . 17 58 23 3 . . 58 Level 2 20 | . . 1 . 23 . 100 41 Level 3 11 | . . . . 21 100 . . Level 4 7 | . . . . 15 . . . Level 5 . | . . . . . . . . High Security . | . . . . . . . . Max Security . | . . . . . . . . Sterilizations 1 | . . . . . . 1 . Squads Dispatched 42 | . . 6 2 23 . 1 10 Investigation 9 | . . 3 . 5 . . 1 Extermination 9 | . . . . 8 . . 1 Reinforcement 16 | . . 3 2 4 . 1 6 Assault 5 | . . . . 3 . . 2 Garrison 3 | . . . . 3 . . . Intercept . | . . . . . . . . Searches Triggered . | . . . . . . . . Construction Impeded 1 | . . . . 1 . . . Haulers Reinforced 2 | . . . . 1 . . 1 Active Scanning Responses . | . . . . . . . . Cargo Convoy Interrupts 1 | . . . . . . . 1 Stealth | -11 -10 -9 -8 -7 -6 -6 -5 --------- Run | Yrd Mat Mat Mat Fac Fac DSF Fac Distress Signals 10 | . 4 2 1 1 . . 2 Communications Jammed . | . . . . . . . . Distress Signals . | . . . . . . . . Times Spotted 228 | . 14 33 28 93 . 12 48 Peak Tracking Total 15 | . 5 6 4 8 . 5 15 Tactical Retreats 15 | . 1 1 2 1 . 2 8 Traps | -11 -10 -9 -8 -7 -6 -6 -5 ------- Run | Yrd Mat Mat Mat Fac Fac DSF Fac Traps Triggered 9 | . . 2 . 5 . 1 1 Indirectly . | . . . . . . . . Trap Hack Attempts 31 | . . . 6 25 . . . Triggered . | . . . . . . . . Disarmed . | . . . . . . . . Reprogrammed 4 | . . . 1 3 . . . Reused 2 | . . . . 2 . . . Traps Extracted 1 | . . . 1 . . . . Installed . | . . . . . . . . Triggered 5 | . . . . 3 . . 2 Most Traps Carried 1 | . . . 1 1 . . . Machines | -11 -10 -9 -8 -7 -6 -6 -5 ---------- Run | Yrd Mat Mat Mat Fac Fac DSF Fac Machines Disabled 17 | . . . . 14 . . 3 Max in Single Turn 4 | . . . . 4 . . 1 Garrison Access 1 | . . . . . . . 1 Machines Repaired . | . . . . . . . . Machines Dismantled . | . . . . . . . . Machines Sabotaged . | . . . . . . . . Overloaded Fab Kills . | . . . . . . . . Hacking | -11 -10 -9 -8 -7 -6 -6 -5 --------- Run | Yrd Mat Mat Mat Fac Fac DSF Fac Machines Accessed 40 | . 2 8 6 18 1 . 5 Terminals 26 | . 2 6 4 12 1 . 1 Fabricators 2 | . . . . 1 . . 1 Repair Stations 4 | . . . 2 2 . . . Recycling Units 4 | . . 1 . 2 . . 1 Scanalyzers 3 | . . 1 . 1 . . 1 Garrison Access 1 | . . . . . . . 1 Total Hacks 113 | . 4 22 11 54 1 . 21 Successful 76 | . 2 17 9 32 1 . 15 Failed 37 | . 2 5 2 22 . . 6 Catastrophic 6 | . . 1 . 3 . . 2 Database Lockouts . | . . . . . . . . Manual 45 | . 3 12 5 24 . . 1 Terminals 60 | . 4 16 6 31 1 . 2 Fabricators 5 | . . . . 3 . . 2 Repair Stations 14 | . . . 5 9 . . . Recycling Units 12 | . . 2 . 6 . . 4 Scanalyzers 20 | . . 4 . 5 . . 11 Garrison Access 2 | . . . . . . . 2 Terminal Hacks 12 | . . 5 1 5 1 . . Part Schematic 1 | . . . . 1 . . . Robot Analysis 1 | . . . . 1 . . . Prototype ID Bank 2 | . . 2 . . . . . Open DSF 2 | . . . . 1 1 . . Branch Access Points 1 | . . . . 1 . . . Unreport Threat 2 | . . 1 1 . . . . Locate Traps 2 | . . 1 . 1 . . . Recall Investigation 1 | . . 1 . . . . . Fabricator Hacks 5 | . . . . 3 . . 2 Load Schematic 3 | . . . . 2 . . 1 Build 2 | . . . . 1 . . 1 Repair Station Hacks 12 | . . . 4 8 . . . Scan Component 6 | . . . 2 4 . . . Repair 6 | . . . 2 4 . . . Recycling Unit Hacks 7 | . . 2 . 4 . . 1 Process 2 | . . 1 . 1 . . . Report Inventory 3 | . . 1 . 1 . . 1 Retrieve Matter 2 | . . . . 2 . . . Scanalyzer 19 | . . 4 . 5 . . 10 Insert Component 8 | . . 2 . 2 . . 4 Analyze 11 | . . 2 . 3 . . 6 Garrison Access Hacks 1 | . . . . . . . 1 Seal Access 1 | . . . . . . . 1 Unauthorized Hacks 20 | . 2 6 4 7 . . 1 Terminals 20 | . 2 6 4 7 . . 1 Botnet 20 | . 2 6 4 7 . . 1 Fabricators . | . . . . . . . . Repair Stations . | . . . . . . . . Recycling Units . | . . . . . . . . Scanalyzers . | . . . . . . . . Garrison Access . | . . . . . . . . Data Cores Recovered . | . . . . . . . . Used . | . . . . . . . . Hacking Detections 27 | . 2 4 5 14 . . 2 Full Trace Events 7 | . . 1 . 5 . . 1 Feedback Events . | . . . . . . . . Feedback Blocked . | . . . . . . . . Robot Schematics Acquired . | . . . . . . . . Robots Built . | . . . . . . . . Authchips . | . . . . . . . . Time . | . . . . . . . . Total Robot Build Rating . | . . . . . . . . Part Schematics Acquired 8 | . . 2 . 2 . . 4 Parts Built 3 | . . . . 1 . . 2 Authchips 2 | . . . . 1 . . 1 Time 59 | . . . . 17 . . 42 Total Part Build Rating 9 | . . . . 1 . . 8 Parts Repaired 6 | . . . 2 4 . . . Time 211 | . . . 57 154 . . . Parts Recycled . | . . . . . . . . Recycled Matter 101 | . . 17 . 84 . . . Retrieved Matter 84 | . . . . 84 . . . Retrieved Components . | . . . . . . . . Parts Scanalyzed 8 | . . 2 . 2 . . 4 Part Schematics Acquired 7 | . . 2 . 1 . . 4 Parts Damaged 1 | . . . . . . . 1 Bothacking | -11 -10 -9 -8 -7 -6 -6 -5 ------------ Run | Yrd Mat Mat Mat Fac Fac DSF Fac Used RIF Installer . | . . . . . . . . Robots Hacked 1 | . . . 1 . . . . Non-combat 1 | . . . 1 . . . . Combat . | . . . . . . . . Robot Hacks Applied 1 | . . . 1 . . . . parse_system 1 | . . . 1 . . . . Relay Couplers Released . | . . . . . . . . Fabnet Peak Effective % . | . . . . . . . . Robots Rewired 1 | . . . . 1 . . . Allies Hacked . | . . . . . . . . Hacks Repelled . | . . . . . . . . Allies | -11 -10 -9 -8 -7 -6 -6 -5 -------- Run | Yrd Mat Mat Mat Fac Fac DSF Fac Total Allies 4 | . . . . 4 . . . Largest Group 3 | . . . . 3 . . . Highest-Rated Group 93 | . . . . 93 . . . Highest-Rated Ally 31 | . . . . 31 . . . Total Orders . | . . . . . . . . Ally Attacks 20 | . . . . 20 . . . Total Damage 285 | . . . . 285 . . . Kills 5 | . . . . 5 . . . Allies Corrupted . | . . . . . . . . Allies Melted . | . . . . . . . . Intel | -11 -10 -9 -8 -7 -6 -6 -5 ------- Run | Yrd Mat Mat Mat Fac Fac DSF Fac Robot Analysis Total 1 | . . . . 1 . . . Derelict Logs Recovered . | . . . . . . . . Drone Launches . | . . . . . . . . Drone Recoveries . | . . . . . . . . Exploration | -11 -10 -9 -8 -7 -6 -6 -5 ------------- Run | Yrd Mat Mat Mat Fac Fac DSF Fac Turns Passed 9674 | 2 534 1023 1684 4487 130 300 1514 Spaces Moved 4695 | 2 281 550 558 2332 77 103 792 Core 442 | . . . 27 2 . . 413 Treads 6 | . . . . . . . 6 Legs 246 | 2 39 . . . . . 205 Wheels 4001 | . 242 550 531 2330 77 103 168 Hover . | . . . . . . . . Flight . | . . . . . . . . Fastest Speed 50 | 120 100 100 110 116 130 130 50 Average Speed 141 | 120 105 110 208 133 151 148 148 Slowest Speed 2750 | 120 120 175 1900 2750 175 160 610 Overloaded Moves . | . . . . . . . . Propulsion Burnouts . | . . . . . . . . Robots Hopped . | . . . . . . . . Cave-ins Triggered . | . . . . . . . . Exploration Rate (%) 38 | 2 40 58 39 58 3 83 24 Regions Visited 7 Branch Regions . Pre-discovered Areas . | . . . . . . . . Known Exits Taken 1 | . . . . . 1 . . Unknown Exits Taken 5 | 1 1 1 1 1 . . . Scrap Searched . | . . . . . . . . Spaces Dug . | . . . . . . . . Terrain Destroyed 83 | . . . 7 30 . . 46 Melee . | . . . . . . . . Projectile 55 | . . . 7 30 . . 18 AOE 27 | . . . . . . . 27 Terrain Rammed . | . . . . . . . . Walls Destroyed . | . . . . . . . . Machines Disabled . | . . . . . . . . Actions | -11 -10 -9 -8 -7 -6 -6 -5 --------- Run | Yrd Mat Mat Mat Fac Fac DSF Fac Total 6637 | 1 411 771 900 3288 90 179 997 Wait 808 | . 50 58 121 525 . . 54 Move 4688 | 1 280 549 557 2331 76 102 792 Hop . | . . . . . . . . Pick Up 148 | . 12 21 30 40 6 14 25 Fast Attach 36 | . 2 3 12 13 . 2 4 Attach 104 | . 2 12 14 33 5 5 33 Detach 6 | . . 4 . . . . 2 Swap 47 | . 3 11 9 18 2 . 4 Drop 98 | . 6 12 25 34 1 1 19 Fire 610 | . 56 101 123 224 . 46 60 Melee 1 | . . . 1 . . . . Ram 7 | . . . 2 4 . . 1 Kick 1 | . . . . . . . 1 Crush . | . . . . . . . . Escape Stasis 26 | . . . . 16 . 8 2 Rewire 26 | . . . . 25 . 1 . Trap 31 | . . . 6 25 . . . Miscellaneous . | . . . . . . . . Route ------- -11/Scrapyard -10/Materials (discovered 2 exits: *Mat / [*Min]) -9/Materials (discovered 2 exits: *Mat x2) -8/Materials (discovered 3 exits: *Fac x2 / [*Sto]) -7/Factory (discovered 3 exits: *Fac / *Low x2) -6/Factory -6/DSF -5/Factory History --------- Turn | Location | Event 1 | -11/Scrapyard | Discovered new exit (range 1) 3 | -11/Scrapyard | Entered Materials 311 | -10/Materials | Build established: Mutant 437 | -10/Materials | Discovered new exit (range 11) 522 | -10/Materials | Discovered new exit (range 12) 537 | -10/Materials | Entered another Materials area 537 | -9/Materials | Evolved 2 slots: Propulsion x1, Utility x1 934 | -9/Materials | Discovered new exit (range 15) 1077 | -9/Materials | Destroyed 7 combat bots 1367 | -9/Materials | Build established: Scavenger-Mutant 1406 | -9/Materials | Core integrity fell below 50% 1478 | -9/Materials | Discovered new exit (range 9) 1499 | -9/Materials | Lost 5 parts (1p3n1w) 1560 | -9/Materials | Entered another Materials area 1560 | -8/Materials | Evolved 2 slots: Propulsion x1, Utility x1 1614 | -8/Materials | Discovered new exit (range 7) 1965 | -8/Materials | Build established: Mutant 2046 | -8/Materials | Lost 3 parts (2u1w) 2335 | -8/Materials | Discovered new exit (range 16) 2437 | -8/Materials | Found Prototype Device 2438 | -8/Materials | Identified Active Sensor Suite 2495 | -8/Materials | Build established: Scavenger-Mutant 2613 | -8/Materials | Repaired Wheel 2774 | -8/Materials | Discovered new exit (range 8) 3166 | -8/Materials | Repaired Hrd. Heavy Armor Plating 3244 | -8/Materials | Entered Factory 3244 | -7/Factory | Evolved 2 slots: Utility x2 4213 | -7/Factory | Repaired Rnf. Deuterium Engine 4301 | -7/Factory | Identified exit to Lower Caves 4889 | -7/Factory | Build established: Mutant 5702 | -7/Factory | Allied Derelicts emerged from ambush trap array 5900 | -7/Factory | Lost 3 allies 5932 | -7/Factory | Lost 3 parts (1n1u1w) 6044 | -7/Factory | First assault squad dispatched 6186 | -7/Factory | Fabricated Cargo Storage Unit (x1) 6189 | -7/Factory | Build established: Scavenger-Mutant 6501 | -7/Factory | Build established: Mutant 6525 | -7/Factory | Repaired Hrd. Heavy Armor Plating 6572 | -7/Factory | Repaired Hrd. Heavy Armor Plating 6617 | -7/Factory | Repaired Arm. Huge Wheel 6906 | -7/Factory | Core integrity fell below 50% 7478 | -7/Factory | Lost 6 parts (3n2u1w) 7511 | -7/Factory | Core integrity fell below 20% 7698 | -7/Factory | Build established: Hauler-Mutant 7721 | -7/Factory | Discovered new exit (range 6) 7731 | -7/Factory | Entered another Factory area 7731 | -6/Factory | Evolved 2 slots: Power x1, Utility x1 7861 | -6/Factory | Identified exit to DSF 7861 | -6/Factory | Entered DSF 7906 | -6/DSF | Additional patrols routed to DSF 7973 | -6/DSF | Lost 7 parts (2p1n2u2w) 8069 | -6/DSF | Discovered new exit (range 15) 8152 | -6/DSF | Sterilization system engaged 8161 | -6/DSF | Entered Factory 8161 | -5/Factory | Evolved 2 slots: Weapon x2 8519 | -5/Factory | Build established: Hauler-Tank 8701 | -5/Factory | Lost 3 parts (2u1w) 8946 | -5/Factory | Build established: Hauler-Gunner 9136 | -5/Factory | Fabricated Arm. Huge Wheel (x2) 9251 | -5/Factory | Cargo convoy interrupted 9277 | -5/Factory | Lost 4 parts (1u3w) 9398 | -5/Factory | Lost 20 parts (3p4n6u7w) 9456 | -5/Factory | Core integrity fell below 50% 9496 | -5/Factory | Core integrity fell below 20% 9512 | -5/Factory | Found Prototype Launcher 9629 | -5/Factory | Build established: Mutant 9661 | -5/Factory | First assault squad dispatched 9664 | -5/Factory | Identified Mni. Smartbomb Launcher 9675 | -5/Factory | Destroyed by G-50 Soldier with Heavy Laser Last Messages --------------- 09548_ Penetrated by Slug. 09548_ Subcomponent Replicator disabled. 09557_ Penetrated by Slug. 09557_ System Shield destroyed. 09560_ Slug penetrates Subcomponent Replicator. 09561_ System corrupted: Matter fused (-10). 09569_ Dropped Lyr. Medium Armor Plating. 09569_ M-28 Smith repairs X-72 Disruptor. 09570_ Dropped Authchip [Device]. 09570_ Acquired Lyr. Medium Armor Plating. 09581_ System corrupted: Component data lost. 09583_ Terminal disabled. 09617_ System corrupted: Component data lost. 09661_ ALERT: Significant disruption in Zone 4R, multiple assault carriers dispatched. 09661_ K-01 Serf destroyed. 09662_ Acquired 19 matter. 09664_ Identified Mni. Smartbomb Launcher. 09668_ Acquired Lgt. Ion Engine. 09673_ Critical hit (Burn: +37). Map ----- +----------------------------------------------------+ | | | | | | | | | | | | | | | ?????????????????????????????????????????????????? | | ?????????????? ??????????????????????????????????? | | ?????????????? ??????????????????????????????????? | | ?????# ?????? ??????????????????????????????????? | | ?????# ????? ""?????????????????????????????????? | | ?????# ??"" """????????????????????????????????? | | ?????# """ """?#??????????????????????????????? | | ?????# #??????????????????????????????? | | ?????# """ """ #??????????????????????????????? | | ?????# """ """ #??????????????????????????????? | | ?????? """ """ #??????????????????????????????? | | ???????? ????????????????????????????????? | | ?????????? ??????????????????????????????????? | | ############+#################+########+#####????? | | g ???? | | x g g ???? | | gg g ???? | | x l = u w ???? | | @b ^ ???? | | ???? | | b A ????? | | ################## b#####+##############????? | | #????????????????# #???????????????????????? | | #????????????????# #???????????????????????? | | #????????????????+ #???????????????????????? | | ######???????????# #???????????????????????? | | +????????# #???????????????????????? | | #######??????????# #???????????????????????? | | #????????????????# #???????????????????????? | | #????????????????# ????????????????????????? | | #????????????????# ?????????????????????????? | | ?????????????????? ?????????????????????????? | | ????????????????????? ??????????????????????????? | | ?????????????????????????????????????????????????? | | ?????????????????????????????????????????????????? | | ?????????????????????????????????????????????????? | | ?????????????????????????????????????????????????? | | ?????????????????????????????????????????????????? | | ?????????????????????????????????????????????????? | | ?????????????????????????????????????????????????? | | ?????????????????????????????????????????????????? | | ?????????????????????????????????????????????????? | | ?????????????????????????????????????????????????? | +----------------------------------------------------+ Best States ------------- Heat Dissipation 105 Coolant Potential 50 Energy Generation 29 Energy Capacity 490 Matter Stores 300 Matter Capacity 300 Sight Range 16 Robot Scan Range 20 Terrain Scan Density 10 Corruption Block 8 Armor Coverage 825 Evasion (%) 50 Targeting Accuracy 5 Recoil Reduction 6 Matter Filtering 30 Particle Charging 15 Offensive Hacking 10 Defensive Hacking 10 Authchip Count 11 Trap Extractor Capacity 4 Item Schematics ----------------- Cooling System | -9/Materials | Scanalyzed Huge Storage Unit | -9/Materials | Scanalyzed Cargo Storage Unit | -7/Factory | Hacked Hrd. Heavy Armor Plating | -7/Factory | Scanalyzed Arm. Huge Wheel | -5/Factory | Scanalyzed Imp. System Restoration Module | -5/Factory | Scanalyzed Imp. Cooling System | -5/Factory | Scanalyzed Enh. Flexi-carbon Leg | -5/Factory | Scanalyzed Robot Schematics ------------------ None Fabricated ------------ Cargo Storage Unit | x1 | -7/Factory | Authchip Arm. Huge Wheel | x2 | -5/Factory | Authchip Alien Tech Used ----------------- None Achievements -------------- Party Time Challenges ------------ None Game ------ Seed VisualAntimatterThruster Manual? 0 Play Time 01:43:27 Cumulative 118.4 hours Start 2024.04.22 @ 09:57:53 End 2024.04.22 @ 11:58:43 Sessions 1 Manual Loads 0 Difficulty Rogue Special Mode None Game No. 230 Rogue 230 Adventurer 0 Explorer 0 Win Type - Total 0 Types 0/0/0/0/0/0/0/0/0 Lore% 33 Gallery% 43 Achievement% 31 Wizard Run 0 Options --------- Layout 1 ASCII 0 Keyboard 0 Movement Mouse Keybinds 0 Fullscreen 1 Font 24/Smallcaps Map View 50x40 Zoom Use 0% Tactical HUD 1 Map Filters NONE Filters NONE Steam 1 RUN: 4367c46d-9dfe-43a2-908b-6c263d0b66f0